bitfinex-derivatives/quotes_ETHF0:USTF0_20250317
["timestamp","ask_amount","ask_price","bid_price","bid_amount"]
[1742180197026,4.8777,1910.2,1910.1,43.47684]
[1742180201731,4.8777,1910.2,1910.1,41.84714]
[1742180202635,1.6681,1910.2,1910.1,41.84714]
[1742180202829,1.6681,1910.2,1910.1,43.47924]
[1742180203035,32.462,1910.3,1910.2,1.04709]
[1742180203237,32.462,1910.3,1910.2,2.67919]
[1742180203633,34.0447,1910.3,1910.2,2.67919]
[1742180204034,30.6307,1910.3,1910.2,5.88699]
[1742180205238,1.5586,1910.4,1910.3,1.04703]
[1742180205438,1.5586,1910.4,1910.3,2.71493]
[1742180205638,3.2065,1910.4,1910.3,2.71493]
[1742180206537,5.0899,1910.5,1910.4,1.04698]
[1742180206740,5.0899,1910.5,1910.4,2.71488]
[1742180207539,5.0899,1910.5,1910.4,2.75760947]
[1742180208248,1.6769,1910.5,1910.4,2.75760947]
[1742180208639,3.2787,1910.5,1910.4,2.75760947]
[1742180210348,1.6353,1910.7,1910.6,1.04687]
[1742180210552,1.6353,1910.7,1910.6,1.08959947]
[1742180210949,3.3063,1910.7,1910.6,41.88959947]
[1742180211754,3.3063,1910.7,1910.6,45.09739947]
[1742180213749,3.3063,1910.7,1910.6,40.84272947]
[1742180213750,4.35312,1910.7,1910.6,40.84272947]
[1742180215149,9.13472,1910.7,1910.6,40.84272947]
[1742180220159,12.69869863,1910.7,1910.6,40.84272947]
[1742180220751,13.68104414,1910.7,1910.6,40.84272947]
[1742180220957,13.5918585,1910.7,1910.6,40.84272947]
[1742180221152,13.68104215,1910.7,1910.6,40.84272947]
[1742180223460,11.18104215,1910.7,1910.6,40.84272947]
[1742180223851,11.18104267,1910.7,1910.6,40.84272947]
[1742180224550,13.68104267,1910.7,1910.6,40.84272947]
[1742180224757,14.37970187,1910.7,1910.6,40.84272947]
[1742180224960,13.68104267,1910.7,1910.6,40.84272947]
[1742180225660,14.37967546,1910.7,1910.6,40.84272947]
[1742180227958,11.0918585,1910.7,1910.6,40.84272947]
[1742180228166,13.4570385,1910.7,1910.6,40.84272947]
[1742180228365,14.5038585,1910.7,1910.6,40.84272947]
[1742180228560,13.52151569,1910.7,1910.6,40.84272947]
[1742180229361,12.47469569,1910.7,1910.6,40.84272947]
[1742180229668,12.47529437,1910.7,1910.6,40.84272947]
[1742180229868,13.52211437,1910.7,1910.6,40.84272947]
[1742180231468,14.50497377,1910.7,1910.6,40.84272947]
[1742180231963,13.52239242,1910.7,1910.6,40.84272947]
[1742180232168,13.611574,1910.7,1910.6,40.84272947]
[1742180233470,17.09441439,1910.7,1910.6,40.84272947]
[1742180235363,17.09441439,1910.7,1910.6,40.83749211]
[1742180236670,17.00523281,1910.7,1910.6,40.83749211]
[1742180236869,17.09441877,1910.7,1910.6,40.83749211]
[1742180237668,14.59441877,1910.7,1910.6,40.83749211]
[1742180238563,14.50523281,1910.7,1910.6,40.83749211]
[1742180238769,14.59441915,1910.7,1910.6,40.83749211]
[1742180238977,15.29272226,1910.7,1910.6,40.83749211]
[1742180239364,17.79272226,1910.7,1910.6,40.83749211]
[1742180240368,17.70353592,1910.7,1910.6,40.83749211]
[1742180240672,17.79272151,1910.7,1910.6,40.83749211]
[1742180241473,15.29272151,1910.7,1910.6,42.36669211]
[1742180242176,15.29272087,1910.7,1910.6,42.36669211]
[1742180243878,11.79153592,1910.7,1910.6,42.36669211]
[1742180244070,17.79272004,1910.7,1910.6,42.36669211]
[1742180244477,15.29272004,1910.7,1910.6,42.36669211]
[1742180246164,15.29272004,1910.7,1910.6,1.5292]
[1742180247280,15.29272004,1910.7,1910.6,42.3292]
[1742180248788,14.30987965,1910.7,1910.6,42.3292]
[1742180249583,14.30988178,1910.7,1910.6,42.3292]
[1742180250179,1.04687,1910.6,1910.5,0.00785608]
[1742180250483,7.57653178,1910.6,1910.5,0.00785608]
[1742180251076,7.57653178,1910.6,1910.5,40.80785608]
[1742180251281,10.07653178,1910.6,1910.5,40.80785608]
[1742180251879,1.04698,1910.4,1910.3,1.6777]
[1742180252179,7.75496625,1910.4,1910.3,1.6777]
[1742180252378,9.42894178,1910.4,1910.3,1.6777]
[1742180252577,11.85373867,1910.4,1910.3,1.6777]
[1742180252774,12.55294574,1910.4,1910.3,1.6777]
[1742180252978,12.55294574,1910.4,1910.3,42.4777]
[1742180253176,15.05294574,1910.4,1910.3,42.4777]
[1742180253383,15.05294574,1910.4,1910.3,40.8]
[1742180253881,12.55394574,1910.4,1910.3,42.3553]
[1742180254085,8.73163867,1910.4,1910.3,42.3553]
[1742180254383,8.7316462,1910.4,1910.3,45.2951]
[1742180254588,8.64245242,1910.4,1910.3,45.2951]
[1742180256187,13.42405242,1910.4,1910.3,45.2951]
[1742180256390,15.03504674,1910.4,1910.3,44.0348]
[1742180256590,15.7338956,1910.4,1910.3,44.0348]
[1742180258490,44.7718956,1910.4,1910.3,42.3553]
[1742180259782,44.77189726,1910.4,1910.3,42.3553]
[1742180260288,44.68270128,1910.4,1910.3,42.3553]
[1742180260488,44.77189834,1910.4,1910.3,42.3553]
[1742180261887,44.07304948,1910.4,1910.3,42.3553]
[1742180262086,44.07305128,1910.4,1910.3,42.3553]
[1742180262583,38.00307242,1910.4,1910.3,42.3553]
[1742180262892,42.46105242,1910.4,1910.3,43.6151]
[1742180263183,41.41407242,1910.4,1910.3,43.6151]
[1742180263386,40.4384,1910.4,1910.3,43.6151]
[1742180263589,37.0274,1910.4,1910.3,43.6151]
[1742180263794,40.4384,1910.4,1910.3,43.6151]
[1742180264388,37.2306,1910.4,1910.3,43.6151]
[1742180265494,29.038,1910.4,1910.3,44.66213]
[1742180265693,32.449,1910.4,1910.3,44.66213]
[1742180267094,32.449,1910.4,1910.3,43.6151]
[1742180267591,32.449,1910.4,1910.3,44.66213]
[1742180267788,32.449,1910.4,1910.3,43.6151]
[1742180269886,32.449,1910.4,1910.3,44.66213]
[1742180270594,32.449,1910.4,1910.3,43.6151]
[1742180270787,32.449,1910.4,1910.3,44.66213]
[1742180272893,3.411,1910.4,1910.3,44.66213]
[1742180273693,0.00785608,1910.5,1910.3,44.66213]
[1742180273882,3.41,1910.4,1910.3,42.0598]
[1742180275197,3.41,1910.4,1910.3,43.10683]
[1742180275388,3.41,1910.4,1910.3,42.0598]
[1742180276794,3.41,1910.4,1910.3,43.10683]
[1742180278786,3.41,1910.4,1910.3,42.0598]
[1742180278991,3.41,1910.4,1910.3,40.8]
[1742180278992,4.45698,1910.4,1910.3,40.8]
[1742180279197,6.06898,1910.4,1910.3,40.8]
[1742180279595,5.022,1910.4,1910.3,40.8]
[1742180282689,9.8036,1910.4,1910.3,40.8]
[1742180283702,8.1916,1910.4,1910.3,41.84703]
[1742180283899,4.7816,1910.4,1910.3,43.10823]
[1742180284102,8.1916,1910.4,1910.3,43.10823]
[1742180287301,4.7816,1910.4,1910.3,43.10823]
[1742180287503,8.1916,1910.4,1910.3,43.10823]
[1742180288510,3.41,1910.4,1910.3,43.10823]
[1742180290209,3.41,1910.4,1910.3,44.69233]
[1742180290607,1.52555608,1910.5,1910.4,1.04698]
[1742180290808,1.52555608,1910.5,1910.4,2.63108]
[1742180290809,4.93555608,1910.5,1910.4,2.63108]
[1742180293212,8.14335608,1910.5,1910.4,2.63108]
[1742180293404,4.93555608,1910.5,1910.4,2.63108]
[1742180294908,1.04698,1910.4,1910.3,40.8]
[1742180295113,3.1019,1910.4,1910.3,40.8]
[1742180295514,4.07904445,1910.4,1910.3,40.8]
[1742180296515,3.1019,1910.4,1910.3,40.8]
[1742180298111,6.5109,1910.4,1910.3,40.8]
[1742180298618,7.55788,1910.4,1910.3,40.8]
[1742180299519,8.53463373,1910.4,1910.3,40.8]
[1742180300218,13.31623373,1910.4,1910.3,40.8]
[1742180304515,13.31623373,1910.4,1910.3,42.3723]
[1742180306524,12.33948,1910.4,1910.3,42.3723]
[1742180309523,12.33948,1910.4,1910.3,40.8]
[1742180310527,13.31589213,1910.4,1910.3,40.8]
[1742180312729,13.40509086,1910.4,1910.3,40.8]
[1742180313822,14.10405403,1910.4,1910.3,40.8]
[1742180314330,14.10406001,1910.4,1910.3,40.8]
[1742180317231,13.40509684,1910.4,1910.3,40.8]
[1742180319428,14.10390409,1910.4,1910.3,40.8]
[1742180319633,13.40509684,1910.4,1910.3,42.3674]
[1742180320129,14.10393597,1910.4,1910.3,42.3674]
[1742180320332,14.10393597,1910.4,1910.3,40.8]
[1742180321725,1.04703,1910.3,1910.2,0.00785608]
[1742180321931,13.97428597,1910.3,1910.2,0.00785608]
[1742180322123,1.04725,1909.9,1909.8,1.5674]
[1742180322334,12.44565,1909.9,1909.8,1.5674]
[1742180322638,13.42206213,1909.9,1909.8,42.3674]
[1742180323137,13.51128487,1909.9,1909.8,40.8]
[1742180323335,15.14388748,1909.9,1909.8,40.8]
[1742180323839,15.14388748,1909.9,1909.8,42.401]
[1742180325534,16.78318748,1909.9,1909.8,42.401]
[1742180325931,16.78318279,1909.9,1909.8,42.401]
[1742180330636,16.69396213,1909.9,1909.8,42.401]
[1742180330832,16.78318503,1909.9,1909.8,42.401]
[1742180334845,16.78418552,1909.9,1909.8,42.401]
[1742180336143,16.78418316,1909.9,1909.8,42.401]
[1742180337641,15.06236213,1909.9,1909.8,42.401]
[1742180338236,16.69268523,1909.9,1909.8,42.401]
[1742180339841,16.69268502,1909.9,1909.8,42.401]
[1742180341444,16.60346213,1909.9,1909.8,42.401]
[1742180341644,16.69268359,1909.9,1909.8,42.401]
[1742180342045,16.69168359,1909.9,1909.8,42.401]
[1742180342437,15.15058359,1909.9,1909.8,42.401]
[1742180342844,16.70388359,1909.9,1909.8,42.401]
[1742180343443,13.51128359,1909.9,1909.8,42.401]
[1742180343641,12.46403359,1909.9,1909.8,45.3183]
[1742180343842,12.37382461,1909.9,1909.8,45.3183]
[1742180344546,13.42107461,1909.9,1909.8,45.3183]
[1742180346045,10.01207461,1909.9,1909.8,45.3183]
[1742180346353,13.42107461,1909.9,1909.8,45.3183]
[1742180347252,13.42107461,1909.9,1909.8,42.401]
[1742180347452,18.40669372,1909.9,1909.8,42.401]
[1742180348960,15.17259372,1909.9,1909.8,42.401]
[1742180349252,15.08337461,1909.9,1909.8,42.401]
[1742180349450,16.75037461,1909.9,1909.8,42.401]
[1742180349652,16.83959466,1909.9,1909.8,42.401]
[1742180350049,16.83959393,1909.9,1909.8,42.401]
[1742180350252,16.83959483,1909.9,1909.8,42.401]
[1742180350649,16.75037461,1909.9,1909.8,42.401]
[1742180350855,16.83959441,1909.9,1909.8,42.401]
[1742180354059,16.75037461,1909.9,1909.8,42.401]
[1742180354557,16.83959428,1909.9,1909.8,42.401]
[1742180355054,16.75037461,1909.9,1909.8,42.401]
[1742180355250,13.34137461,1909.9,1909.8,42.401]
[1742180355454,16.75037461,1909.9,1909.8,42.401]
[1742180356156,16.83959171,1909.9,1909.8,42.401]
[1742180356354,16.75037461,1909.9,1909.8,42.401]
[1742180358359,16.83959409,1909.9,1909.8,42.401]
[1742180359458,16.75037461,1909.9,1909.8,42.401]
[1742180359675,16.83959397,1909.9,1909.8,42.401]
[1742180360355,16.75037461,1909.9,1909.8,42.401]
[1742180360550,16.83959393,1909.9,1909.8,42.401]
[1742180360757,16.75037461,1909.9,1909.8,42.401]
[1742180361365,16.83959387,1909.9,1909.8,42.401]
[1742180361553,16.75037461,1909.9,1909.8,42.401]
[1742180365458,15.08237461,1909.9,1909.8,42.401]
[1742180365759,13.42007461,1909.9,1909.8,42.401]
[1742180366161,14.99457461,1909.9,1909.8,42.401]
[1742180366763,13.94732461,1909.9,1909.8,42.401]
[1742180367356,14.99457461,1909.9,1909.8,42.401]
[1742180368161,12.37282461,1909.9,1909.8,42.401]
[1742180368361,12.37282461,1909.9,1909.8,45.2683]
[1742180368563,13.42007461,1909.9,1909.8,45.2683]
[1742180368763,14.97167461,1909.9,1909.8,45.2683]
[1742180369166,14.97167461,1909.9,1909.8,44.0294]
[1742180370154,14.97167461,1909.9,1909.8,42.401]
[1742180370359,16.56567461,1909.9,1909.8,42.401]
[1742180372865,17.26592826,1909.9,1909.8,42.401]
[1742180373068,17.35515059,1909.9,1909.8,42.401]
[1742180373364,17.35515059,1909.9,1909.8,40.8]
[1742180374060,17.35526708,1909.9,1909.8,40.8]
[1742180375768,17.3552683,1909.9,1909.8,40.8]
[1742180377065,1.04731,1909.8,1909.7,0.00785608]
[1742180377370,5.37856228,1909.8,1909.7,0.00785608]
[1742180377768,6.07879984,1909.8,1909.7,0.00785608]
[1742180377966,1.04764,1909.2,1909.1,2.8042]
[1742180378164,4.45564,1909.2,1909.1,2.8042]
[1742180378470,4.45564,1909.2,1909.1,43.6042]
[1742180378969,4.45564,1909.2,1909.1,40.8]
[1742180379275,12.47714,1909.2,1909.1,40.8]
[1742180379457,15.08372365,1909.2,1909.1,40.8]
[1742180379659,15.08372365,1909.2,1909.1,42.4213]
[1742180381073,44.13172365,1909.2,1909.1,42.4213]
[1742180381274,43.15454,1909.2,1909.1,42.4213]
[1742180383467,41.48614,1909.2,1909.1,42.4213]
[1742180386063,39.85674,1909.2,1909.1,42.4213]
[1742180386277,38.28524,1909.2,1909.1,45.2859]
[1742180386669,38.28524,1909.2,1909.1,43.9943]
[1742180386870,39.85644,1909.2,1909.1,43.9943]
[1742180387073,39.85644,1909.2,1909.1,42.4213]
[1742180387270,1.04769,1909.1,1909.0,0.00785608]
[1742180387467,7.42199,1909.1,1909.0,0.00785608]
[1742180387675,7.51124903,1909.1,1909.0,0.00785608]
[1742180388274,12.29284903,1909.1,1909.0,40.80785608]
[1742180388474,12.20359,1909.1,1909.0,40.80785608]
[1742180388676,12.29285046,1909.1,1909.0,40.80785608]
[1742180389484,12.70121998,1909.1,1909.0,40.80785608]
[1742180392483,12.7012203,1909.1,1909.0,40.80785608]
[1742180393384,12.70121876,1909.1,1909.0,40.80785608]
[1742180393585,12.70122552,1909.1,1909.0,40.80785608]
[1742180394386,12.7012271,1909.1,1909.0,40.80785608]
[1742180394690,1.04786,1908.8,1908.7,1.6651]
[1742180394875,7.66366,1908.8,1908.7,1.6651]
[1742180395496,7.66366,1908.8,1908.7,42.4651]
[1742180395787,9.32876,1908.8,1908.7,42.4651]
[1742180398186,14.11036,1908.8,1908.7,42.4651]
[1742180399495,15.72416,1908.8,1908.7,42.4651]
[1742180401196,11.3974,1908.8,1908.7,42.4651]
[1742180401397,12.44526,1908.8,1908.7,45.289]
[1742180401903,7.9894,1908.8,1908.7,45.289]
[1742180402103,11.3974,1908.8,1908.7,45.289]
[1742180402403,8.1896,1908.8,1908.7,45.289]
[1742180402700,4.7816,1909.1,1908.7,48.83691]
[1742180402891,4.45575,1909.0,1908.8,1.6316]
[1742180403697,4.45575,1909.0,1908.9,40.8]
[1742180404600,4.7816,1909.1,1908.9,40.8]
[1742180404800,32.456,1909.2,1909.0,4.7755]
[1742180405003,33.50364,1909.2,1909.1,2.8605]
[1742180405207,33.50364,1909.2,1909.1,1.5677]
[1742180405392,33.50364,1909.2,1909.1,42.3677]
[1742180405790,41.47744,1909.2,1909.1,42.3677]
[1742180408599,40.4298,1909.2,1909.1,42.3677]
[1742180409003,37.2376,1909.2,1909.1,42.3677]
[1742180409196,37.2376,1909.2,1909.1,49.12319]
[1742180409197,32.456,1909.2,1909.1,49.12319]
[1742180410305,0.00785608,1909.3,1909.2,1.04764]
[1742180410607,2.1162,1909.3,1909.2,2.8257]
[1742180410804,3.408,1909.4,1909.3,1.04757]
[1742180411301,3.408,1909.4,1909.3,1.5309]
[1742180411605,4.45553,1909.4,1909.3,1.5309]
[1742180412003,6.10143,1909.4,1909.3,1.5309]
[1742180412812,9.30923,1909.4,1909.3,1.5309]
[1742180413097,1.04764,1909.2,1909.1,40.8]
[1742180413701,3.3333,1909.2,1909.1,40.8]
[1742180413893,1.6558,1909.2,1909.1,40.8]
[1742180414096,5.0855,1909.4,1909.1,41.84769]
[1742180414296,5.0855,1909.4,1909.1,40.8]
[1742180414297,5.0638,1909.4,1909.1,40.8]
[1742180414602,4.78945608,1909.5,1909.3,1.04756]
[1742180414798,4.78945608,1909.5,1909.4,1.5677]
[1742180415200,4.78945608,1909.5,1909.4,2.61523]
[1742180415606,8.19645608,1909.5,1909.4,1.5677]
[1742180416100,8.19645608,1909.5,1909.4,2.61523]
[1742180416602,0.00785608,1909.5,1909.4,2.61523]
[1742180416808,0.00785608,1909.5,1909.4,5.11523]
[1742180417007,0.00785608,1909.5,1909.4,2.61523]
[1742180417207,0.00785608,1909.5,1909.4,43.41523]
[1742180417710,3.41485608,1909.5,1909.4,43.41523]
[1742180417904,3.41485608,1909.5,1909.4,42.3677]
[1742180420011,3.41485608,1909.5,1909.4,43.41523]
[1742180420913,0.00785608,1909.5,1909.4,45.91523]
[1742180421213,3.41485608,1909.5,1909.4,45.91523]
[1742180421711,0.00785608,1909.5,1909.4,43.41523]
[1742180421909,3.41485608,1909.5,1909.4,43.41523]
[1742180423111,3.41485608,1909.5,1909.4,42.3677]
[1742180423302,4.94405608,1909.5,1909.4,42.3677]
[1742180423504,4.94405608,1909.5,1909.4,43.41523]
[1742180423705,6.55035608,1909.5,1909.4,43.41523]
[1742180424210,5.02115608,1909.5,1909.4,43.41523]
[1742180424414,3.41485608,1909.5,1909.4,43.41523]
[1742180427316,29.057,1909.8,1909.4,44.8677]
[1742180427507,3.406,1909.7,1909.6,4.25522]
[1742180428212,3.406,1909.7,1909.6,45.05522]
[1742180428618,30.64155608,1909.8,1909.7,1.04736]
[1742180428804,34.04755608,1909.8,1909.7,1.04736]
[1742180429011,36.62976608,1909.8,1909.7,1.5946]
[1742180429208,1.04736,1909.7,1909.6,40.80785608]
[1742180429410,2.70346,1909.7,1909.6,40.80785608]
[1742180430114,1.6561,1909.7,1909.6,40.80785608]
[1742180430513,1.6561,1909.7,1909.6,42.40245608]
[1742180431519,1.6561,1909.7,1909.6,40.80785608]
[1742180432218,7.48506,1909.7,1909.6,40.80785608]
[1742180432518,7.57429297,1909.7,1909.6,40.80785608]
[1742180433620,8.54929553,1909.7,1909.6,40.80785608]
[1742180434020,7.50193553,1909.7,1909.6,40.80785608]
[1742180434222,8.54929553,1909.7,1909.6,40.80785608]
[1742180434419,7.50193553,1909.7,1909.6,40.80785608]
[1742180434822,6.52693297,1909.7,1909.6,40.80785608]
[1742180435420,6.4377,1909.7,1909.6,40.80785608]
[1742180437916,7.48506,1909.7,1909.6,40.80785608]
[1742180438117,8.4610287,1909.7,1909.6,40.80785608]
[1742180438324,8.55025852,1909.7,1909.6,0.00785608]
[1742180438517,1.04748,1909.5,1909.1,1.6857]
[1742180438722,4.961,1909.4,1909.1,1.6857]
[1742180439021,3.185,1909.3,1909.1,1.6857]
[1742180439215,1.555,1909.2,1909.1,1.6857]
[1742180439819,1.555,1909.2,1909.1,42.4857]
[1742180440021,4.961,1909.2,1909.1,42.4857]
[1742180440717,4.961,1909.2,1909.1,43.53339]
[1742180440923,4.961,1909.2,1909.1,42.4857]
[1742180441117,3.406,1909.2,1909.1,43.53339]
[1742180441923,3.406,1909.2,1909.1,43.54269]
[1742180443229,3.406,1909.2,1909.1,46.04269]
[1742180443920,4.25591,1909.5,1909.3,1.04758]
[1742180444122,4.25591,1909.5,1909.4,1.6104]
[1742180444324,7.66191,1909.5,1909.4,1.6104]
[1742180445331,6.6144,1909.5,1909.4,1.6104]
[1742180445625,3.406,1909.5,1909.4,7.3182]
[1742180445828,3.406,1909.5,1909.4,8.36573]
[1742180446029,3.406,1909.7,1909.6,1.04739]
[1742180446433,5.0525,1909.7,1909.6,41.84739]
[1742180446624,3.406,1909.7,1909.6,41.84739]
[1742180447417,33.84645608,1909.8,1909.7,1.04736]
[1742180447623,38.86705608,1909.8,1909.7,2.67986]
[1742180448025,33.84645608,1909.8,1909.7,43.47986]
[1742180448334,37.25245608,1909.8,1909.7,43.47986]
[1742180448728,33.84645608,1909.8,1909.7,43.47986]
[1742180448934,37.25245608,1909.8,1909.7,43.47986]
[1742180449830,32.47085608,1909.8,1909.7,43.47986]
[1742180450326,29.06485608,1909.8,1909.7,43.47986]
[1742180450532,3.406,1909.9,1909.8,1.04731]
[1742180450722,3.406,1909.9,1909.8,5.79381]
[1742180451119,1.5875,1910.0,1909.9,1.04725]
[1742180451329,4.9935,1910.0,1909.9,43.37575]
[1742180453132,6.5811,1910.0,1909.9,43.37575]
[1742180453531,4.9935,1910.0,1909.9,43.37575]
[1742180453835,1.5875,1910.0,1909.9,46.58355]
[1742180454140,4.9935,1910.0,1909.9,46.58355]
[1742180455426,3.406,1910.0,1909.9,46.58355]
[1742180455628,0.00785608,1910.1,1910.0,1.0472]
[1742180455838,3.41285608,1910.1,1910.0,2.6087]
[1742180456239,3.41285608,1910.1,1910.0,5.1087]
[1742180456535,0.00785608,1910.1,1910.0,2.6087]
[1742180457234,0.00785608,1910.1,1910.0,5.1087]
[1742180457934,0.00785608,1910.1,1910.0,2.6087]
[1742180458934,0.00785608,1910.1,1910.0,5.1087]
[1742180460727,29.045,1910.4,1910.3,1.04703]
[1742180460929,32.45,1910.4,1910.3,1.04703]
[1742180461537,32.45,1910.4,1910.2,1.5442]
[1742180461738,1.643,1910.3,1910.2,1.5442]
[1742180461941,1.643,1910.3,1910.2,2.59129]
[1742180463341,1.643,1910.3,1910.2,1.5442]
[1742180463539,1.643,1910.3,1910.2,2.59129]
[1742180464632,29.045,1910.4,1910.3,1.04703]
[1742180464833,32.45,1910.4,1910.3,2.71543]
[1742180465032,34.0808,1910.4,1910.3,2.71543]
[1742180465238,34.0808,1910.4,1910.3,43.51543]
[1742180465938,30.6758,1910.4,1910.3,46.72323]
[1742180466139,34.0808,1910.4,1910.3,46.72323]
[1742180470643,34.0798,1910.4,1910.3,46.72323]
[1742180471139,3.21135608,1910.5,1910.4,1.04698]
[1742180471346,4.7816,1911.0,1910.9,1.04671]
[1742180471546,4.7816,1911.0,1910.6,2.61717]
[1742180471547,1.6206,1910.9,1910.7,3.2078]
[1742180471744,3.2776,1910.9,1910.7,3.2078]
[1742180472441,3.2776,1910.9,1910.8,1.04676]
[1742180472636,4.883,1910.9,1910.8,2.68796]
[1742180472843,8.287,1910.9,1910.8,2.68796]
[1742180476344,8.287,1910.9,1910.5,4.25469]
[1742180476345,11.4948,1910.9,1910.5,4.25469]
[1742180476546,1.5885,1910.8,1910.2,3.2078]
[1742180476849,1.04683,1910.7,1910.5,1.0469]
[1742180477044,4.9915,1910.6,1910.5,1.0469]
[1742180477250,7.60177,1910.6,1910.4,2.70285]
[1742180477453,3.2398,1910.5,1910.4,2.70285]
[1742180477656,3.2398,1910.5,1910.4,2.70288]
[1742180477852,3.2398,1910.5,1910.4,1.04698]
[1742180478948,6.6438,1910.5,1910.4,1.04698]
[1742180479254,6.6438,1910.5,1910.4,2.59758]
[1742180480350,5.0553,1910.5,1910.4,5.80538]
[1742180481255,6.6768,1910.5,1910.4,2.59758]
[1742180481751,6.6768,1910.5,1910.4,5.80538]
[1742180484351,6.6768,1910.5,1910.4,2.59758]
[1742180486952,1.6513,1910.5,1910.4,5.80538]
[1742180487153,3.403,1910.5,1910.4,5.80538]
[1742180487352,3.403,1910.5,1910.4,5.82018]
[1742180487654,5.0587,1910.7,1910.6,1.04687]
[1742180487949,3.404,1910.7,1910.6,1.04687]
[1742180488354,3.404,1910.7,1910.6,41.84687]
[1742180488749,1.6547,1910.7,1910.6,41.84687]
[1742180489253,1.6547,1910.7,1910.6,45.05467]
[1742180490456,1.5466,1910.8,1910.7,1.04682]
[1742180490749,4.9496,1910.8,1910.7,2.71692]
[1742180490950,1.5466,1910.8,1910.7,2.71692]
[1742180491160,1.5466,1910.8,1910.7,43.51692]
[1742180494756,1.5466,1910.8,1910.7,43.92682775]
[1742180494959,1.5466,1910.8,1910.7,43.51692]
[1742180496146,4.4988,1910.8,1910.7,43.51692]
[1742180497157,1.5466,1910.8,1910.7,43.51692]
[1742180498762,2.8779,1910.8,1910.7,43.51692]
[1742180499251,1.5466,1910.8,1910.7,43.51692]
[1742180500358,4.1319,1910.8,1910.7,43.51692]
[1742180501858,4.1319,1910.8,1910.7,41.84682]
[1742180502262,4.1319,1910.8,1910.7,43.23732]
[1742180503157,4.1319,1910.8,1910.7,41.84682]
[1742180505954,7.5349,1910.8,1910.7,41.84682]
[1742180506360,7.5349,1910.8,1910.7,43.29222]
[1742180507365,7.5349,1910.8,1910.7,41.84682]
[1742180507566,7.5349,1910.8,1910.7,43.29222]
[1742180510168,7.5349,1910.8,1910.7,41.84682]
[1742180511168,7.5349,1910.8,1910.7,40.8]
[1742180511565,8.58166,1910.8,1910.7,40.8]
[1742180512971,7.5349,1910.8,1910.7,40.8]
[1742180513573,8.58166,1910.8,1910.7,40.8]
[1742180513970,7.5349,1910.8,1910.7,40.8]
[1742180514170,7.5349,1910.8,1910.7,41.84682]
[1742180516364,6.0894,1910.8,1910.7,41.84682]
[1742180516571,4.9496,1910.8,1910.7,43.18702]
[1742180516975,1.5466,1910.8,1910.7,43.18702]
[1742180517480,2.9791,1910.8,1910.7,43.18702]
[1742180521585,1.5466,1910.8,1910.7,43.18702]
[1742180523193,1.1693,1911.0,1910.9,1.04671]
[1742180523383,4.5723,1911.0,1910.9,1.04671]
[1742180523584,1.1693,1911.0,1910.9,1.04671]
[1742180523779,4.5723,1911.0,1910.9,2.36101]
[1742180525293,1.3276,1911.2,1911.1,1.0466]
[1742180525590,5.8845,1911.2,1911.1,1.0466]
[1742180525990,5.8845,1911.2,1911.0,3.2078]
[1742180526293,1.3276,1911.1,1911.0,3.2078]
[1742180526488,2.0334,1911.1,1911.0,4.25445]
[1742180528996,2.0334,1911.1,1911.0,1.04665]
[1742180530292,4.1078,1911.1,1911.0,1.04665]
[1742180530693,0.7058,1911.1,1911.0,1.04665]
[1742180531796,4.7816,1911.3,1911.2,1.04654]
[1742180531998,4.7395,1911.4,1911.3,1.04649]
[1742180532196,4.7395,1911.4,1911.3,4.25429]
[1742180532492,0.6736,1911.4,1911.3,45.05429]
[1742180532697,2.0701,1911.7,1911.6,1.04632]
[1742180532996,2.0701,1911.7,1911.5,4.25416]
[1742180533193,4.8082,1911.6,1911.4,1.04642]
[1742180533399,1.4062,1911.5,1911.4,1.04643]
[1742180533599,1.4062,1911.5,1911.3,40.8]
[1742180533898,0.6639,1911.4,1911.3,40.8]
[1742180534199,0.6639,1911.4,1911.3,41.84649]
[1742180534499,2.0701,1911.4,1911.3,41.84649]
[1742180535301,4.0659,1911.4,1911.3,41.84649]
[1742180536397,4.0659,1911.4,1911.3,40.8]
[1742180536597,4.0659,1911.4,1911.3,41.84649]
[1742180537800,4.7395,1911.4,1911.3,41.84649]
[1742180538300,1.3375,1911.4,1911.3,41.84649]
[1742180538602,4.7395,1911.4,1911.3,41.84649]
[1742180539201,1.3375,1911.4,1911.3,41.84649]
[1742180539498,4.7395,1911.4,1911.3,41.84649]
[1742180540096,4.7395,1911.4,1911.3,43.23849]
[1742180540497,4.0756,1911.4,1911.3,46.44629]
[1742180540900,8.1836,1911.6,1911.5,1.04638]
[1742180541206,4.7816,1911.6,1911.5,4.25418]
[1742180541707,4.7816,1911.6,1911.5,45.05418]
[1742180543309,8.1826,1911.6,1911.5,45.05418]
[1742180543704,3.401,1911.6,1911.5,45.05418]
[1742180544295,4.44732,1911.6,1911.5,40.8]
[1742180544501,4.44732,1911.6,1911.5,41.84638]
[1742180544502,3.401,1911.6,1911.5,41.84638]
[1742180544900,4.8211,1911.6,1911.5,41.84638]
[1742180545997,4.8211,1911.6,1911.5,40.8]
[1742180546400,5.86742,1911.6,1911.5,40.8]
[1742180547008,4.8211,1911.6,1911.5,40.8]
[1742180548211,4.8211,1911.6,1911.5,41.84638]
[1742180548908,4.8211,1911.6,1911.5,40.8]
[1742180549407,5.86742,1911.6,1911.5,40.8]
[1742180549715,10.64902,1911.6,1911.5,40.8]
[1742180551311,7.24802,1911.6,1911.5,40.8]
[1742180551612,10.64902,1911.6,1911.5,40.8]
[1742180552115,11.62329807,1911.6,1911.5,40.8]
[1742180552515,14.12329807,1911.6,1911.5,40.8]